Cogmind - Beta 17 @@@ ROGUE MODE // 2026.07.04 @ 06:37:52 Player: ChCbias Result: Destroyed by G-34 Mercenary with Small Laser Performance ------------- Evolutions (0) 0 Regions Visited (1) 200 Robots Destroyed (20) 100 Value Destroyed (483) 483 Prototype IDs (2) 40 Alien Tech Used (0) 0 Bonus (0) 0 TOTAL SCORE: 823 Bonus ------- None Cogmind --------- Core Integrity 0/250 Matter 298/300 Energy 250/250 System Corruption 2% Temperature Cool (28) Movement Rolling (110) Ox2 Location -10/Materials Parts ------- > --- POWER (1) -------- Ion Engine > --- PROPULSION (2) --- Light Treads Wheel > --- UTILITY (2) ------ Large Storage Unit Targeting Computer > --- WEAPON (2) ------- Small Laser Light Assault Rifle > --- INVENTORY (15) --- Aluminum Leg Aluminum Leg Heat Sink Grenade Launcher Peak State ------------ > --- POWER ------------ Light Ion Engine > --- PROPULSION ------- Light Treads Wheel > --- UTILITY ---------- Small Storage Unit Large Storage Unit > --- WEAPON ----------- Light Assault Rifle Light Assault Rifle > --- INVENTORY -------- Ion Engine Light Treads Aluminum Leg Aluminum Leg Wheel Light Assault Rifle Grenade Launcher [Rating: 7] Favorites ----------- Power Light Ion Engine Engine Light Ion Engine Propulsion Light Treads Treads Light Treads Wheel Wheel Utility Large Storage Unit Storage Large Storage Unit Processor Targeting Computer Weapon Light Assault Rifle Energy Gun Small Laser Ballistic Gun Light Assault Rifle Build | -11 -10 ------- Run | Yrd Mat Slots Evolved . | . . Power . | . . Propulsion . | . . Utility . | . . Weapon . | . . Parts Attached 14 | 6 8 Power 2 | 1 1 Engine 2 | 1 1 Core . | . . Reactor . | . . Propulsion 5 | 2 3 Treads 2 | 1 1 Leg . | . . Wheel 3 | 1 2 Hover . | . . Flight . | . . Utility 3 | 1 2 Device . | . . Storage 2 | 1 1 Processor 1 | . 1 Hackware . | . . Protection . | . . Artifact . | . . Weapon 4 | 2 2 Energy Gun 1 | . 1 Energy Cannon . | . . Ballistic Gun 3 | 2 1 Ballistic Cannon . | . . Launcher . | . . Special Weapon . | . . Impact Weapon . | . . Slashing Weapon . | . . Piercing Weapon . | . . Special Melee Weapon . | . . Unidentified Prototypes . | . . Parts Lost 6 | . 6 Power 1 | . 1 Propulsion 3 | . 3 Utility . | . . Weapon 2 | . 2 Highest Loss Streak 6 | . 6 To Critical Strikes . | . . Average Backups 6 | 2 6 Power . | . . Propulsion 3 | 1 3 Utility . | . . Weapon 1 | . 1 Tool/Special . | . . Unused Backups 4 | . 4 Power . | . . Propulsion 2 | . 2 Utility 1 | . 1 Weapon 1 | . 1 Tool/Special . | . . Average Slot Usage (%) 94 | . 94 Engine 13 | . 13 Treads 13 | . 13 Wheel 13 | . 13 Storage 14 | . 14 Processor 11 | . 11 Energy Gun 2 | . 2 Ballistic Gun 24 | . 24 Peak Build Rating 7 | 6 7 Average Rating 6 | 4 6 On Entrance 3 | . 6 Avg Prop Armor Cover (%) 14 | 14 14 Naked Turns . | . . Heaviest Build 27 | 10 27 Greatest Support 10 | 10 10 Greatest Overweight (x) 6 | . 6 Average Overweight (x) 1 | . 1 Largest Inventory Capacity 15 | 8 15 Average Capacity 13 | 7 14 Most Carried 9 | 6 9 Average Carried 6 | 2 6 Final Capacity 15 | 8 15 Final Carried 6 | 6 4 Class Distribution -------------------- 100% | Mutant Dominant Class ---------------- Mutant | -10/Materials Resources | -11 -10 ----------- Run | Yrd Mat Matter Collected 424 | 213 211 Remotely . | . . Salvage Created 589 | . 589 Parts 35 | . 35 Haulers Intercepted . | . . Recyclers Shooed 2 | . 2 Parts Field Recycled . | . . Retrieved Matter . | . . Parts Self-Destructed . | . . Prevented . | . . Parts Restored . | . . Kills | -11 -10 ------- Run | Yrd Mat Combat Hostiles Destroyed 18 | . 18 Guns 18 | . 18 Classes Destroyed 3 | . 3 Worker 2 | . 2 Swarmer 6 | . 6 Grunt 12 | . 12 Best Kill Streak 7 | . 7 Combat Bots Only 6 | . 6 Max Kills in Single Turn 1 | . 1 Gunslinging . | . . Exploded . | . . Melee . | . . Uniques/NPCs Destroyed . | . . Combat | -11 -10 -------- Run | Yrd Mat Hostile Shots Fired 116 | . 116 Missed 36 | . 36 Hits 80 | . 80 Projectile 80 | . 80 Damage Taken 871 | . 871 Core 253 | . 253 Absorbed by Shields . | . . Core Remaining (%) 100 | 100 . Volleys Fired 65 | . 65 Largest 2 | . 2 Hottest 60 | . 60 Shots Fired 123 | . 123 Gun 123 | . 123 Cannon . | . . Launcher . | . . Special . | . . Kinetic 113 | . 113 Thermal 10 | . 10 Explosive . | . . Electromagnetic . | . . Robot Hit Streak 13 | . 13 Robot Miss Streak 2 | . 2 Penetration Max . | . . Secondary Targets 2 | . 2 Max Gunslinging Chain 1 | . 1 Shots Hit Robots 88 | . 88 Core Hits 43 | . 43 Critical Kills . | . . Critical Parts Destroyed . | . . Critical Strikes . | . . Melee Attacks . | . . Impact . | . . Slashing . | . . Piercing . | . . Sneak Attacks . | . . Combat Hostiles . | . . Follow-up Attacks . | . . Damage Inflicted 751 | . 751 Guns 744 | . 744 Cannons . | . . Explosions . | . . Melee . | . . Ramming 7 | . 7 Kinetic 644 | . 644 Thermal 100 | . 100 Explosive . | . . Electromagnetic . | . . Impact . | . . Slashing . | . . Piercing . | . . Highest Corruption 2 | . 2 Average Corruption 1 | . 1 Corruption Purged . | . . Corruption Blocked . | . . Effects 2 | . 2 Heat Flow Errors 1 | . 1 Data Loss (minor) 1 | . 1 Overload Shots . | . . Overflow Damage . | . . Projectiles . | . . Explosions . | . . Melee . | . . Knockbacks . | . . Impact . | . . Kinetic . | . . Secondary . | . . Self-Inflicted Damage 3 | . 3 Shots . | . . Rammed 1 | . 1 Targets Rammed 1 | . 1 Kicked . | . . Crushed . | . . Highest Temperature 157 | . 157 Average Temperature 38 | . 38 Received Heat Transfer 387 | . 387 Siege Activations . | . . Martial Activations . | . . Shielding Activations . | . . Robots Disrupted . | . . Combat Hostiles . | . . Robots Corrupted . | . . Combat Hostiles . | . . Parts Fried . | . . Impact Corruptions . | . . Robots Melted . | . . Combat Hostiles . | . . Parts Melted . | . . Heat Transferred 225 | . 225 Parts Sabotaged . | . . Parts Stolen . | . . Parts Stripped . | . . Power Chain Reactions . | . . Alert | -11 -10 ------- Run | Yrd Mat Maximum Alert Level . | . . Low Security (%) 100 | 100 100 Level 1 . | . . Level 2 . | . . Level 3 . | . . Level 4 . | . . Level 5 . | . . High Security . | . . Max Security . | . . Peak Influence 197 | . 197 Initial . | . . Average 52 | . 57 Influence Increases 479 | . 479 Destroy 0b10 Robot/C 360 | . 360 Destroy 0b10 Robot/NC 10 | . 10 Destroy Leader 70 | . 70 Successful Hack 39 | . 39 Influence Decreases 282 | . 282 Time Decay 222 | . 222 Lost Part 60 | . 60 Squads Dispatched 4 | . 4 Investigation 4 | . 4 Extermination . | . . Reinforcement . | . . Assault . | . . Garrison . | . . Intercept . | . . Searches Triggered . | . . Construction Impeded . | . . Haulers Reinforced . | . . Active Scanning Responses . | . . Cargo Convoy Interrupts . | . . Stealth | -11 -10 --------- Run | Yrd Mat Distress Signals . | . . Communications Jammed . | . . Distress Signals . | . . Times Spotted 24 | . 24 Peak Tracking Total 7 | . 7 Tactical Retreats . | . . Traps | -11 -10 ------- Run | Yrd Mat Traps Triggered 2 | . 2 Indirectly . | . . Trap Hack Attempts . | . . Triggered . | . . Disarmed . | . . Reprogrammed . | . . Reused . | . . Traps Extracted . | . . Installed . | . . Triggered . | . . Machines | -11 -10 ---------- Run | Yrd Mat Machines Disabled . | . . Max in Single Turn . | . . Machines Repaired . | . . Machines Dismantled . | . . Machines Sabotaged . | . . Overloaded Fab Kills . | . . Hacking | -11 -10 --------- Run | Yrd Mat Machines Accessed 8 | . 8 Terminals 7 | . 7 Fabricators . | . . Repair Stations . | . . Recycling Units 1 | . 1 Scanalyzers . | . . Garrison Access . | . . Total Hacks 38 | . 38 Successful 16 | . 16 Failed 22 | . 22 Catastrophic 2 | . 2 Database Lockouts . | . . Manual 26 | . 26 Terminals 33 | . 33 Fabricators . | . . Repair Stations . | . . Recycling Units 5 | . 5 Scanalyzers . | . . Garrison Access . | . . Terminal Hacks 11 | . 11 Part Schematic 3 | . 3 Prototype ID Bank 1 | . 1 Level Access Points 1 | . 1 Branch Access Points 1 | . 1 Terminal Index 1 | . 1 Scanalyzer Index 1 | . 1 Locate Traps 1 | . 1 Dispatch Records 1 | . 1 Registered Components 1 | . 1 Fabricator Hacks . | . . Repair Station Hacks . | . . Recycling Unit Hacks 2 | . 2 Report Inventory 1 | . 1 Retrieve Components 1 | . 1 Scanalyzer . | . . Garrison Access Hacks . | . . Unauthorized Hacks 3 | . 3 Terminals 3 | . 3 Track 1 | . 1 Botnet 2 | . 2 Fabricators . | . . Repair Stations . | . . Recycling Units . | . . Scanalyzers . | . . Garrison Access . | . . Data Cores Recovered . | . . Used . | . . Hacking Detections 8 | . 8 Full Trace Events 7 | . 7 Feedback Events 2 | . 2 Corruption 2 | . 2 Feedback Blocked . | . . Robot Schematics Acquired . | . . Robots Built . | . . Authchips . | . . Time . | . . Total Robot Build Rating . | . . Part Schematics Acquired 3 | . 3 Parts Built . | . . Authchips . | . . Time . | . . Total Part Build Rating . | . . Part Studies Acquired . | . . Parts Repaired . | . . Time . | . . Parts Recycled . | . . Recycled Matter . | . . Retrieved Matter . | . . Retrieved Components 2 | . 2 Parts Scanalyzed . | . . Part Schematics Acquired . | . . Parts Damaged . | . . Bothacking | -11 -10 ------------ Run | Yrd Mat Used RIF Installer . | . . Robots Hacked . | . . Non-combat . | . . Combat . | . . Robot Hacks Applied . | . . Relay Couplers Released . | . . Fabnet Peak Effective % . | . . Robots Rewired . | . . Allies Hacked . | . . Hacks Repelled . | . . Allies | -11 -10 -------- Run | Yrd Mat Total Allies . | . . Largest Group . | . . Highest-Rated Group . | . . Highest-Rated Ally . | . . Total Orders . | . . Ally Attacks . | . . Total Damage . | . . Kills . | . . Allies Corrupted . | . . Allies Melted . | . . Intel | -11 -10 ------- Run | Yrd Mat Active Infowar (turns) . | . . Robot Analysis Total . | . . Derelict Logs Recovered . | . . Drone Launches . | . . Drone Recoveries . | . . Exploration | -11 -10 ------------- Run | Yrd Mat Turns Passed 619 | 45 574 Spaces Moved 388 | 38 350 Core 5 | 3 2 Treads . | . . Legs . | . . Wheels 383 | 35 348 Hover . | . . Flight . | . . Fastest Speed 50 | 50 80 Average Speed 103 | 77 106 Slowest Speed 350 | 80 350 Overloaded Moves . | . . Propulsion Burnouts . | . . Robots Hopped . | . . Potential Cave-ins . | . . Cave-ins Triggered . | . . Exploration Rate (%) 35 | 3 67 Regions Visited 1 Branch Regions . Pre-discovered Areas . | . . Known Exits Taken . | . . Unknown Exits Taken 1 | 1 . Scrap Searched . | . . Spaces Dug . | . . Terrain Destroyed . | . . Melee . | . . Projectile . | . . AOE . | . . Terrain Rammed . | . . Walls Destroyed . | . . Machines Disabled . | . . Actions | -11 -10 --------- Run | Yrd Mat Total 502 | 50 452 Wait 25 | 1 24 Move 387 | 37 350 Hop . | . . Pick Up 9 | 6 3 Fast Attach 9 | 6 3 Attach 5 | . 5 Detach . | . . Swap . | . . Drop 1 | . 1 Fire 65 | . 65 Melee . | . . Ram 1 | . 1 Kick . | . . Crush . | . . Escape Stasis . | . . Rewire . | . . Trap . | . . Miscellaneous . | . . Route ------- -11/Scrapyard -10/Materials (discovered 5 exits: *Mat x3 / Min x2) History --------- Turn | Location | Event 19 | -11/Scrapyard | Discovered new exit (range 15) 46 | -11/Scrapyard | Entered Materials 182 | -10/Materials | Discovered new exit (range 13) 313 | -10/Materials | Build established: Mutant 319 | -10/Materials | Identified exit to Mines 422 | -10/Materials | Identified exit to Materials 473 | -10/Materials | Core integrity fell below 50% 518 | -10/Materials | Core integrity fell below 20% 540 | -10/Materials | Lost 6 parts (1p3n2w) 620 | -10/Materials | Destroyed by G-34 Mercenary with Small Laser Last Messages --------------- 2x Transport >>Schematic(Assault Rifle) Downloading schematic... Assault Rifle Rating: 1 Schematic downloaded. >>Schematic(ECM Suite) Downloading schematic... ECM Suite Rating: 1 Schematic downloaded. >>Schematic(Lgt. Treads) Downloading schematic... Lgt. Treads Rating: 1 Schematic downloaded. Feedback: System corruption (+1%). 00598_ ALERT: Suspicious activity at Terminal M001. Dispatching Investigation squad. 00619_ G-34 Mercenary destroyed. Map ----- +----------------------------------------------------+ | ????????#+########??????# # % | | ????????#%=*! #??????# +^^^ | | ????????#===* #??????# #^^^ | | ????????#! """ #??????# "T" # | | ????????# """"" #??????# """ # | | ????????# """"" #??????# # | | ????????# """"" #??????#####+## | | ????????# """ #??????????# | | ????????# [! #??????????# | | ?????# ?# =%% #??????????# | | ?????# ######+#########?????# | | ?????# *=[ #?????# | | ?????# *! #?????#####+# | | ?????# #??????# | | ?????# """ #??????# "" " | | ?????## """ #??????# "Y " | | ??????# """ #??????# "" " | | ??????# #??????# | | ??????# #??????# " | | ??????# " #??????# " | | ??????# T #??????# " | | ??????# " #??????# | | ??????+ #??????###### | | ??????# * #???????????? | | ??????###g####### #???????????? | | ??????# %@ ## #???????????? | | ??????# """ ## #???????????? | | ??????# """ ## #???????????? | | ??????# """ ## < #???????????? | | ??????# ## #???????????? | | ??????# """ ########???????????? | | ??????# """ #??????????????????? | | ??????# ??? #??????????????????? | | ??????? ??? [ #??????????????????? | | ???????????#####??????????????????? | | ??????????????????????????????????? | | | | | | | | | | | | | | | | | | | | | | | | | | | | | +----------------------------------------------------+ Best States ------------- Heat Dissipation 25 Energy Generation 10 Energy Capacity 250 Matter Stores 300 Matter Capacity 300 Sight Range 16 Terrain Scan Density 10 Evasion (%) 44 Targeting Accuracy 5 Item Schematics ----------------- Assault Rifle | -10/Materials | Hacked ECM Suite | -10/Materials | Hacked Lgt. Treads | -10/Materials | Hacked Robot Schematics ------------------ None Fabricated ------------ Nothing Repaired ---------- Nothing Studied --------- None Alien Tech Used ----------------- None Achievements -------------- None Challenges ------------ None Game ------ Seed ScatterStealthReconstructor Manual? 0 Play Time 00:15:15 Cumulative 20.7 hours Start 2026.07.04 @ 06:25:52 End 2026.07.04 @ 06:37:52 Sessions 1 Manual Loads 0 Difficulty Rogue Special Mode None Game No. 19 Rogue 19 Adventurer 0 Explorer 0 Win Type - Total 0 Types 0/0/0/0/0/0/0/0/0/0 Lore% 20 Gallery% 19 Achievement% 20 Wizard Run 0 Options --------- Layout 1 ASCII 0 Keyboard 0 Movement Mouse Keybinds 0 Fullscreen 1 Font 24/Smallcaps Map View 50x35 Zoom Use 0% Tactical HUD 1 Map Filters NONE Filters NONE Steam 1 RUN: 6bb603cd-e0a5-4ad9-b847-0d14479ea415